bitfinex/quotes_BTCUSD_20251224
["timestamp","ask_amount","ask_price","bid_price","bid_amount"]
[1766536688622,0.01144,87516.0,87508.0,0.01142752]
[1766536688823,0.01144,87516.0,87510.0,0.01142726]
[1766536689399,0.000549,87510.0,87507.0,0.13122765]
[1766536689608,0.000549,87510.0,87507.0,0.18836587]
[1766536689817,0.000549,87510.0,87507.0,0.18836585]
[1766536690000,0.01144,87516.0,87510.0,0.01142726]
[1766536690560,0.01144,87516.0,87511.0,0.01142713]
[1766536690961,0.01144,87516.0,87512.0,0.011427]
[1766536691719,0.01144,87516.0,87513.0,0.01142687]
[1766536692240,0.01144,87521.0,87514.0,0.01142674]
[1766536692470,0.01144,87521.0,87513.0,0.01142687]
[1766536692679,0.000549,87513.0,87506.0,0.13122778]
[1766536692885,0.000549,87513.0,87507.0,0.01142765]
[1766536693095,0.11369,87516.0,87507.0,0.01142765]
[1766536693300,0.00028163,87508.0,87507.0,0.01142765]
[1766536693923,0.11369,87516.0,87511.0,0.01142713]
[1766536694123,0.0001,87522.0,87518.0,0.01142622]
[1766536694328,0.01144,87523.0,87519.0,0.1198]
[1766536694466,0.02286543,87524.0,87515.0,0.01142661]
[1766536694691,0.01144,87524.0,87516.0,0.01142648]
[1766536694876,0.01144,87524.0,87518.0,0.01142622]
[1766536695271,0.01144,87524.0,87521.0,0.01142582]
[1766536695698,0.01144,87524.0,87519.0,0.01142609]
[1766536696076,0.01144,87524.0,87517.0,0.1198]
[1766536696728,0.01144,87524.0,87521.0,0.01142582]
[1766536697102,0.01144,87524.0,87520.0,0.01142595]
[1766536697378,0.11369,87531.0,87520.0,0.06855573]
[1766536697591,0.04572,87533.0,87527.0,0.1198]
[1766536697796,0.01144,87532.0,87527.0,0.1198]
[1766536698314,0.02286439,87532.0,87527.0,0.1198]
[1766536698517,0.02286439,87532.0,87523.0,0.13122556]
[1766536698819,0.01144,87532.0,87523.0,0.13122556]
[1766536699220,0.01144,87532.0,87528.0,0.01142491]
[1766536699803,0.01144,87532.0,87527.0,0.13122504]
[1766536699982,0.01144,87532.0,87529.0,0.13122478]
[1766536700196,0.01144,87536.0,87529.0,0.1198]
[1766536700392,0.01154728,87536.0,87529.0,0.13122478]
[1766536700908,0.01154728,87536.0,87530.0,0.01142465]
[1766536701891,0.01154728,87536.0,87529.0,0.1198]
[1766536702750,0.01154728,87536.0,87529.0,0.119251]
[1766536702969,0.011424,87535.0,87529.0,0.119251]
[1766536703170,0.01154728,87536.0,87529.0,0.119251]
[1766536704943,0.01154728,87536.0,87529.0,0.13067578]
[1766536705198,0.01154728,87536.0,87529.0,0.119251]
[1766536705399,0.01142269,87545.0,87537.0,0.1198]
[1766536705696,0.01142321,87541.0,87530.0,0.1198]
[1766536705895,0.00025011,87538.0,87531.0,0.12578]
[1766536706453,1.1e-07,87538.0,87531.0,0.12578]
[1766536706888,0.01142372,87538.0,87531.0,0.11434]
[1766536707057,1.1e-07,87538.0,87533.0,0.11434]
[1766536707257,0.01142372,87538.0,87533.0,0.11434]
[1766536708261,0.011424,87535.0,87527.0,0.0001]
[1766536708461,0.05737166,87533.0,87528.0,0.01144]
[1766536708691,0.01142465,87530.0,87527.0,0.01164728]
[1766536709731,0.06854797,87530.0,87527.0,0.01164728]
[1766536710016,0.01142465,87530.0,87527.0,0.01164728]
[1766536710237,0.01142452,87531.0,87527.0,0.01164728]
[1766536711754,0.01142465,87530.0,87527.0,0.01164728]
[1766536712132,0.01142465,87530.0,87527.0,0.13492728]
[1766536712333,0.01142426,87533.0,87527.0,0.13492728]
[1766536712533,0.01142426,87533.0,87530.0,0.000849]
[1766536713057,0.01142426,87533.0,87527.0,0.12348728]
[1766536714232,0.06854795,87530.0,87527.0,0.12323728]
[1766536714441,0.01142465,87530.0,87527.0,0.12323728]
[1766536714645,0.01142452,87531.0,87527.0,0.12323728]
[1766536715228,0.06854606,87533.0,87527.0,0.12323728]
[1766536715430,0.01142439,87532.0,87527.0,0.12323728]
[1766536715836,0.01142452,87531.0,87527.0,0.12323728]
[1766536716482,0.01142439,87532.0,87527.0,0.12323728]
[1766536717972,0.011424,87535.0,87527.0,0.12323728]
[1766536718568,0.01142452,87531.0,87527.0,0.12323728]
[1766536718722,0.01142439,87532.0,87527.0,0.12323728]
[1766536718935,0.01142465,87530.0,87525.0,0.01144]
[1766536719132,0.01142452,87531.0,87525.0,0.01144]
[1766536719336,0.01142543,87524.0,87514.0,0.01142674]
[1766536719513,0.12109,87524.0,87517.0,0.01370904]
[1766536719911,0.01142569,87522.0,87515.0,0.01144]
[1766536720115,0.01142569,87522.0,87512.0,0.12328]
[1766536720316,0.05713306,87515.0,87502.0,0.04572]
[1766536720496,0.05713306,87515.0,87504.0,0.01142804]
[1766536720497,0.01142687,87513.0,87504.0,0.01142804]
[1766536720696,0.12109,87512.0,87504.0,0.01142804]
[1766536722386,0.132517,87512.0,87502.0,0.01153561]
[1766536722566,0.132517,87512.0,87504.0,0.01144]
[1766536722827,0.01142713,87511.0,87504.0,0.01144]
[1766536723503,0.12425,87509.0,87502.0,0.0001073]
[1766536723737,0.12425,87507.0,87499.0,0.0114287]
[1766536723965,0.12435718,87507.0,87499.0,0.0114287]
[1766536724706,0.13578483,87507.0,87498.0,0.02286883]
[1766536726145,0.12435718,87507.0,87499.0,0.0114287]
[1766536726923,0.13578483,87507.0,87498.0,0.02286883]
[1766536727292,0.13578483,87507.0,87498.0,0.01144]
[1766536728821,0.12435718,87507.0,87498.0,0.02286883]
[1766536729102,0.12435718,87507.0,87499.0,0.0114287]
[1766536729293,0.12435718,87507.0,87500.0,0.01142857]
[1766536729706,0.12435718,87507.0,87499.0,0.0114287]
[1766536730130,0.13578483,87507.0,87498.0,0.01144]
[1766536730316,0.13578483,87507.0,87498.0,0.02286883]
[1766536730539,0.01142804,87504.0,87498.0,0.01144]
[1766536730685,0.0114287,87499.0,87496.0,0.01144]
[1766536731705,0.06857189,87500.0,87496.0,0.01144]
[1766536731706,0.01142857,87500.0,87496.0,0.01144]
[1766536731933,0.14711778,87506.0,87496.0,0.01144]
[1766536732088,0.14711778,87506.0,87500.0,0.000549]
[1766536732297,0.13569,87506.0,87500.0,0.000549]
[1766536732783,0.13569,87506.0,87499.0,0.0114287]
[1766536733573,0.13569,87506.0,87498.0,0.01142883]
[1766536733972,0.13569,87506.0,87499.0,0.0114287]
[1766536734540,0.13569,87506.0,87498.0,0.01142883]
[1766536734741,0.14711778,87506.0,87497.0,0.01142896]
[1766536734944,0.14711778,87506.0,87496.0,0.01144]
[1766536735144,0.01142791,87505.0,87496.0,0.02286909]
[1766536735338,0.01142817,87503.0,87496.0,0.01144]
[1766536735549,0.01142857,87500.0,87496.0,0.01144]
[1766536735764,0.01142857,87500.0,87496.0,0.0034815]
[1766536735972,0.12425,87498.0,87492.0,0.0001]
[1766536736296,0.13567817,87503.0,87491.0,0.05714846]
[1766536736529,0.02286778,87506.0,87498.0,0.000549]
[1766536736745,0.01142791,87505.0,87498.0,0.000549]
[1766536736962,0.02286778,87506.0,87497.0,0.01142896]
[1766536737165,0.01144,87506.0,87500.0,0.01142857]
[1766536737306,0.01144,87506.0,87500.0,0.12620857]
[1766536737706,0.05,87505.0,87502.0,0.01142831]
[1766536737947,0.01144,87506.0,87502.0,0.01142831]
[1766536738304,0.00010718,87507.0,87502.0,0.01142831]
[1766536738510,0.00010718,87507.0,87500.0,0.12620857]
[1766536739149,0.00010718,87507.0,87500.0,0.11478]
[1766536739349,0.01153483,87507.0,87500.0,0.11478]
[1766536740214,0.00010718,87507.0,87500.0,0.11478]
[1766536740420,0.00010718,87507.0,87500.0,0.12620857]
[1766536740616,0.00010718,87507.0,87500.0,0.11478]
[1766536741017,0.00010718,87507.0,87500.0,0.12620857]
[1766536741268,0.00010718,87507.0,87501.0,0.01142844]
[1766536741822,0.00010718,87507.0,87502.0,0.01142831]
[1766536742069,0.01144,87509.0,87502.0,0.13628831]
[1766536742319,0.01142752,87508.0,87502.0,0.12486]
[1766536742533,0.02286739,87509.0,87502.0,0.12486]
[1766536742790,0.01144,87509.0,87502.0,0.12486]
[1766536743270,0.01144,87509.0,87502.0,0.13628831]
[1766536743477,0.01142817,87503.0,87496.0,0.01144]
[1766536743695,0.01142765,87507.0,87497.0,0.01142896]
[1766536743696,0.1247,87506.0,87497.0,0.01142896]
[1766536743944,0.13612778,87506.0,87496.0,0.02297627]
[1766536744535,0.1247,87506.0,87498.0,0.01142883]
[1766536746307,0.1247,87506.0,87496.0,0.0801211]
[1766536746308,0.13612778,87506.0,87496.0,0.02297627]
[1766536746487,0.13612778,87506.0,87497.0,0.01142896]
[1766536748073,0.1247,87506.0,87498.0,0.01142883]
[1766536749785,0.13612778,87506.0,87497.0,0.01142896]
[1766536749988,0.1247,87506.0,87497.0,0.01142896]
[1766536750184,0.1247,87506.0,87499.0,0.0114287]
[1766536750390,0.1247,87506.0,87501.0,0.01142844]
[1766536750598,0.1247,87506.0,87499.0,0.0114287]
[1766536750800,0.1247,87506.0,87500.0,0.01142857]
[1766536752156,0.1247,87506.0,87499.0,0.0114287]
[1766536752354,0.1247,87506.0,87500.0,0.01142857]
[1766536754254,0.05,87505.0,87501.0,0.01142844]
[1766536754430,0.05,87505.0,87502.0,0.01142831]
[1766536754961,0.05,87505.0,87501.0,0.01142844]
[1766536756547,0.05,87505.0,87502.0,0.01142831]
[1766536757141,0.049451,87505.0,87502.0,0.01142831]
[1766536757318,0.03835375,87505.0,87502.0,0.01142831]
[1766536758251,0.1247,87506.0,87502.0,0.01142831]
[1766536758426,0.1247,87506.0,87501.0,0.01142844]
[1766536758829,0.1247,87506.0,87500.0,0.01142857]
[1766536758985,0.1247,87506.0,87502.0,0.01142831]
[1766536760143,0.1247,87506.0,87503.0,0.01142817]
[1766536760578,0.000549,87503.0,87499.0,0.0114287]
[1766536760763,0.1247,87506.0,87499.0,0.0114287]
[1766536761174,0.1247,87506.0,87500.0,0.01142857]
[1766536761367,0.1247,87506.0,87501.0,0.01142844]
[1766536761596,0.01144,87509.0,87505.0,0.01142791]
[1766536761779,0.01144,87509.0,87504.0,0.01142804]
[1766536762384,0.1248,87512.0,87509.0,0.01142739]
[1766536762385,0.13614,87511.0,87509.0,0.01142739]
[1766536762584,0.13614,87511.0,87505.0,0.22855836]
[1766536762585,0.13614,87511.0,87505.0,0.05713932]
[1766536762756,0.000549,87509.0,87507.0,0.01142765]
[1766536762977,0.13614,87511.0,87508.0,0.01142752]
[1766536765268,0.000549,87508.0,87505.0,0.01142791]
[1766536765695,0.13614,87511.0,87507.0,0.01142765]
[1766536765942,0.13614,87511.0,87508.0,0.01142752]
[1766536767057,0.13614,87511.0,87503.0,0.05714064]
[1766536767265,0.000549,87508.0,87503.0,0.05714064]
[1766536767470,0.000549,87508.0,87505.0,0.01142791]
[1766536767848,0.13614,87511.0,87507.0,0.01142765]
[1766536768260,0.13614,87511.0,87508.0,0.01142752]
[1766536772478,0.13614,87511.0,87507.0,0.01142765]
[1766536772812,0.13614,87511.0,87505.0,0.06856703]
[1766536773019,0.13614,87511.0,87506.0,0.01142778]
[1766536773434,0.000549,87506.0,87499.0,0.0114287]
[1766536773638,0.000549,87506.0,87500.0,0.01142857]
[1766536773847,0.01142739,87509.0,87500.0,0.01142857]
[1766536774438,0.11502,87508.0,87496.0,0.00010718]
[1766536774597,0.000549,87500.0,87496.0,0.01154718]
[1766536775001,0.12644831,87502.0,87496.0,0.01154718]
[1766536775197,0.11502,87502.0,87496.0,0.01154718]
[1766536775424,0.11502,87502.0,87497.0,0.01142896]
[1766536775624,0.11502,87502.0,87498.0,0.01142883]
[1766536775828,0.11502,87502.0,87497.0,0.01142896]
[1766536776009,0.11502,87502.0,87496.0,0.00010718]
[1766536776633,0.12644831,87502.0,87496.0,0.00010718]
[1766536776964,0.01142844,87501.0,87496.0,1.8e-07]
[1766536777292,0.01142857,87500.0,87496.0,1.8e-07]
[1766536777863,0.12644857,87500.0,87496.0,1.8e-07]
[1766536778010,0.11502,87500.0,87496.0,1.8e-07]
[1766536778853,0.0114287,87499.0,87496.0,1.8e-07]
[1766536779054,0.11502,87496.0,87489.0,0.01144]
[1766536779265,0.11506085,87496.0,87487.0,0.01143026]
[1766536779514,0.12648994,87496.0,87488.0,0.01144]
[1766536779868,0.115462,87488.0,87481.0,0.0001]
[1766536780034,0.12689213,87488.0,87481.0,0.0001]
[1766536780233,0.11502,87487.0,87481.0,0.06868584]
[1766536780475,0.11502,87487.0,87482.0,0.01143092]
[1766536781082,0.11502,87487.0,87483.0,0.01143079]
[1766536781701,0.11502,87487.0,87483.0,7.9e-07]
[1766536782890,0.11502,87487.0,87483.0,0.01143158]
[1766536783088,0.11502,87487.0,87482.0,0.01143092]
[1766536783305,0.11502,87487.0,87481.0,0.06868569]
[1766536783306,0.11502,87487.0,87481.0,0.01153105]
[1766536783519,0.11502,87487.0,87481.0,0.06868624]
[1766536783719,0.11502,87487.0,87483.0,0.01143079]
[1766536784084,0.01144,87490.0,87485.0,0.06858301]
[1766536784386,0.01144,87490.0,87487.0,0.000107]
[1766536784816,0.01144,87490.0,87485.0,0.01143053]
[1766536785431,0.01144,87490.0,87484.0,0.01143066]
[1766536786016,0.01144,87490.0,87481.0,0.0001]
[1766536786214,0.01143,87489.0,87481.0,0.0001]
[1766536786416,0.11833,87481.0,87472.0,0.01143222]
[1766536786584,0.11833,87481.0,87473.0,0.01144]
[1766536786784,0.01143118,87480.0,87473.0,0.011098]
[1766536787046,0.11823,87479.0,87472.0,0.01143222]
[1766536787228,0.00055,87472.0,87466.0,0.01143301]
[1766536787406,0.11878,87472.0,87468.0,0.01143275]
[1766536787605,0.11823,87472.0,87467.0,0.02287288]
[1766536788211,0.11823,87472.0,87468.0,0.01143275]
[1766536789044,0.11823,87472.0,87469.0,0.01143262]
[1766536789607,0.11823,87472.0,87468.0,0.01143275]
[1766536790183,0.117781,87472.0,87468.0,0.01143275]
[1766536790572,0.117781,87472.0,87469.0,0.01143262]
[1766536791287,0.117781,87472.0,87467.0,0.01143288]
[1766536791684,0.117781,87472.0,87465.0,0.02287314]
[1766536791912,0.117781,87472.0,87466.0,0.01143301]
[1766536792695,0.117781,87472.0,87465.0,0.08003834]
[1766536792696,0.117781,87472.0,87465.0,0.02287314]
[1766536792874,0.117781,87472.0,87465.0,0.08003837]
[1766536793076,0.117781,87472.0,87466.0,0.01143301]
[1766536793299,0.117781,87472.0,87468.0,0.01143275]
[1766536794248,0.01144,87479.0,87473.0,0.11504]
[1766536794390,0.01144,87481.0,87473.0,0.12647209]
[1766536794897,0.01143118,87480.0,87471.0,0.01143236]
[1766536795098,0.02287105,87481.0,87471.0,0.01143236]
[1766536795522,0.01144,87481.0,87473.0,0.01143209]
[1766536795782,0.01144,87481.0,87472.0,0.01143222]
[1766536795958,0.05,87480.0,87472.0,0.01143222]
[1766536796743,0.05,87480.0,87473.0,0.01143209]
[1766536797550,0.05,87480.0,87477.0,0.01143157]
[1766536797761,0.01144,87482.0,87481.0,0.05715526]
[1766536798088,0.01144,87482.0,87479.0,0.06858788]
[1766536798270,0.0001,87484.0,87481.0,0.01143105]
[1766536798788,0.01144,87489.0,87484.0,0.01143066]
[1766536799090,0.01144,87489.0,87485.0,0.01143053]
[1766536800323,0.01144,87489.0,87484.0,0.01143066]
[1766536800517,0.01144,87489.0,87482.0,0.01143092]
[1766536800676,0.01144,87489.0,87483.0,0.01143079]
[1766536804040,0.01144,87489.0,87481.0,0.11624]
[1766536804244,0.02287,87489.0,87480.0,0.02287118]
[1766536804451,0.02287,87489.0,87480.0,0.01144]
[1766536804655,0.01144,87489.0,87481.0,0.11624]
[1766536804836,0.01144,87489.0,87481.0,0.12767105]
[1766536805686,0.01144,87489.0,87481.0,0.01143105]
[1766536806297,0.01143013,87488.0,87480.0,0.01144]
[1766536806790,0.01143013,87488.0,87477.0,0.06858943]
[1766536806791,0.12878053,87485.0,87477.0,0.01144]
[1766536807053,0.11735,87485.0,87477.0,0.01144]
[1766536807776,0.12878053,87485.0,87477.0,0.02287157]
[1766536807907,0.11735,87485.0,87479.0,0.01143131]
[1766536808530,0.000549,87479.0,87477.0,0.02287157]
[1766536808929,0.000549,87479.0,87477.0,0.01144]
[1766536809167,0.11735,87485.0,87477.0,0.01144]
[1766536809168,0.11735,87485.0,87478.0,0.01143144]
[1766536809827,0.11735,87485.0,87477.0,0.02287157]
[1766536810206,0.11735,87485.0,87479.0,0.01143131]
[1766536810666,0.10315909,87485.0,87482.0,0.01143092]
[1766536810847,0.01144,87489.0,87483.0,0.01143079]
[1766536811144,0.12879,87489.0,87481.0,0.01143105]
[1766536811341,0.01143013,87488.0,87479.0,0.01143131]
[1766536811500,0.000549,87479.0,87477.0,0.01144]
[1766536811910,0.12878026,87487.0,87477.0,0.01144]
[1766536812456,0.01143053,87485.0,87477.0,0.01144]
[1766536812662,0.1287804,87486.0,87477.0,0.02287157]
[1766536813948,0.11735,87486.0,87477.0,0.02287157]
[1766536814555,0.05,87483.0,87479.0,0.01143131]
[1766536814771,0.05,87483.0,87478.0,0.01143144]
[1766536814984,0.05,87483.0,87479.0,0.01143131]
[1766536815209,0.05,87483.0,87478.0,0.01143144]
[1766536815517,0.05,87483.0,87479.0,0.01143131]
[1766536816087,0.05,87483.0,87478.0,0.01143144]
[1766536817227,0.05,87483.0,87480.0,0.01143118]
[1766536817646,0.02287,87489.0,87480.0,0.01143118]
[1766536818258,0.01144,87489.0,87483.0,0.01143079]
[1766536818472,0.01144,87489.0,87486.0,0.0114304]
[1766536818878,0.01144,87489.0,87483.0,0.01143079]
[1766536819292,0.01144,87489.0,87484.0,0.01143066]
[1766536819642,0.05,87485.0,87484.0,0.01143066]
[1766536820081,0.05,87485.0,87483.0,0.01143079]
[1766536820281,0.001099,87483.0,87478.0,0.05715714]
[1766536820480,0.05,87485.0,87478.0,0.06858858]
[1766536820808,0.01142987,87490.0,87475.0,0.12767183]
[1766536820809,0.0001,87501.0,87487.0,0.01143026]
[1766536820986,0.0001,87501.0,87495.0,0.11624]
[1766536820987,0.01154,87501.0,87495.0,0.11624]
[1766536821339,0.01142752,87508.0,87495.0,0.11624]
[1766536821340,0.11735,87509.0,87506.0,0.01142778]
[1766536821545,0.11735,87509.0,87498.0,0.01142883]
[1766536821546,0.04572,87525.0,87517.0,0.01142635]
[1766536821706,0.02215078,87524.0,87518.0,0.01142622]
[1766536821906,0.00055,87518.0,87515.0,0.01142661]
[1766536822113,0.00055,87518.0,87514.0,0.01142674]
[1766536822318,0.01144,87524.0,87515.0,0.01142661]
[1766536822513,0.10071,87524.0,87514.0,0.01142674]
[1766536822718,0.01142556,87523.0,87511.0,0.01142713]
[1766536822901,0.01142582,87521.0,87512.0,0.011427]
[1766536823262,0.01142569,87522.0,87512.0,0.011427]
[1766536823604,0.01142582,87521.0,87510.0,0.43480995]
[1766536823831,0.01142648,87516.0,87509.0,0.11624]
[1766536824029,0.01142674,87514.0,87502.0,0.12766831]
[1766536824237,0.01142674,87514.0,87505.0,0.01142791]
[1766536824844,0.10069635,87517.0,87507.0,0.01142765]
[1766536825052,0.08927,87517.0,87506.0,0.02286778]
[1766536825255,0.01142648,87516.0,87507.0,0.01142765]
[1766536825459,0.01142648,87516.0,87506.0,0.02286778]
[1766536825993,0.08982,87506.0,87493.0,0.01142948]
[1766536826195,0.08982,87506.0,87497.0,0.01142896]
[1766536826362,0.08927,87506.0,87497.0,0.01142896]
[1766536826737,0.08927,87506.0,87498.0,0.01142883]
[1766536827279,0.08927,87506.0,87497.0,0.01142896]
[1766536827513,0.08927,87506.0,87495.0,0.0803726]
[1766536827514,0.01142791,87505.0,87495.0,0.01179788]
[1766536827686,0.01142817,87503.0,87495.0,0.01179788]
[1766536828036,0.10069804,87504.0,87495.0,0.0232271]
[1766536828234,0.08927,87504.0,87495.0,0.0232271]
[1766536828819,0.08927,87504.0,87496.0,0.01142909]
[1766536829130,0.08927,87504.0,87495.0,0.0232271]
[1766536829367,0.08927,87504.0,87495.0,0.0117871]
[1766536829538,0.08927,87503.0,87495.0,0.00035788]
[1766536830098,0.08899937,87503.0,87495.0,0.00035788]
[1766536831013,0.01142831,87502.0,87495.0,0.00035788]
[1766536831242,0.06857064,87501.0,87495.0,0.00035788]
[1766536831437,0.01142883,87498.0,87488.0,0.00978243]
[1766536831661,0.000357,87495.0,87488.0,0.00978243]
[1766536832061,0.01142922,87495.0,87488.0,0.00978243]
[1766536832263,0.01142922,87495.0,87486.0,0.1361004]
[1766536832486,0.000192,87486.0,87477.0,0.01143157]
[1766536832655,0.08864,87490.0,87481.0,0.02287105]
[1766536832857,0.08864,87490.0,87482.0,0.01143092]
[1766536833426,0.02286935,87494.0,87485.0,0.01143053]
[1766536833633,0.01144,87494.0,87485.0,0.01143053]
[1766536833844,0.01144,87494.0,87486.0,0.0114304]
[1766536834340,0.02286935,87494.0,87484.0,0.01143066]
[1766536834533,0.01142961,87492.0,87483.0,0.13610079]
[1766536834849,0.01142961,87492.0,87483.0,0.12467]
[1766536835597,0.06857797,87492.0,87483.0,0.12467]
[1766536835799,0.01142974,87491.0,87483.0,0.12467]
[1766536836004,0.01142987,87490.0,87481.0,0.01144]
[1766536836208,0.01142974,87491.0,87481.0,0.02287105]
[1766536836837,0.08809,87492.0,87482.0,0.01143092]
[1766536837041,0.08809,87492.0,87485.0,0.01143053]
[1766536837464,0.08809,87492.0,87484.0,0.01143066]
[1766536838010,0.08809,87492.0,87485.0,0.01143053]
[1766536838658,0.08809,87492.0,87484.0,0.01143066]
[1766536840155,0.08809,87492.0,87483.0,0.01143079]
[1766536842157,0.05714873,87491.0,87481.0,0.02287105]
[1766536842530,0.09951961,87492.0,87482.0,0.01143092]
[1766536843367,0.09951961,87492.0,87483.0,0.01143079]
[1766536843579,0.01142974,87491.0,87482.0,0.01143092]
[1766536843781,0.09951961,87492.0,87483.0,0.01143079]
[1766536844415,0.09951961,87492.0,87482.0,0.01143092]
[1766536844862,0.09951961,87492.0,87483.0,0.01143079]
[1766536847313,0.08809,87492.0,87483.0,0.01143079]
[1766536847637,0.01144,87494.0,87485.0,0.01143053]
[1766536847843,0.01144,87494.0,87486.0,0.11389]
[1766536848043,0.02286935,87494.0,87486.0,0.11389]
[1766536848710,0.00035786,87498.0,87493.0,0.01142948]
[1766536848911,0.00035786,87498.0,87491.0,0.01142974]
[1766536849114,0.00035786,87498.0,87492.0,0.12531961]
[1766536849820,0.01142831,87502.0,87492.0,0.12533]
[1766536850108,0.01142896,87497.0,87492.0,0.1079091]
[1766536850488,0.01142909,87496.0,87492.0,0.1079091]
[1766536851083,0.01142896,87497.0,87492.0,0.1079091]
[1766536851289,0.01142883,87498.0,87492.0,0.1079091]
[1766536851510,0.01142909,87496.0,87492.0,0.1079091]
[1766536851686,0.01142896,87497.0,87492.0,0.1079091]
[1766536852429,0.01142909,87496.0,87492.0,0.1079091]
[1766536853056,0.01142883,87498.0,87492.0,0.1079091]
[1766536853337,0.01142896,87497.0,87492.0,0.1079091]
[1766536853530,0.01142883,87498.0,87492.0,0.1079091]
[1766536853763,0.01142896,87497.0,87492.0,0.1079091]
[1766536854034,0.01142883,87498.0,87492.0,0.1079091]
[1766536854237,0.0114287,87499.0,87492.0,0.1079091]
[1766536856181,0.05714274,87501.0,87492.0,0.1079091]
[1766536857141,0.0114287,87499.0,87492.0,0.1079091]
[1766536858776,0.01142883,87498.0,87492.0,0.1079091]
[1766536859492,0.0114287,87499.0,87492.0,0.1079091]
[1766536859694,0.01142883,87498.0,87492.0,0.1079091]
[1766536859997,0.0114287,87499.0,87492.0,0.1079091]
[1766536860699,0.01142857,87500.0,87492.0,0.1079091]
[1766536861045,0.0114287,87499.0,87492.0,0.1079091]
[1766536861473,0.01142857,87500.0,87492.0,0.1079091]
[1766536862292,0.0114287,87499.0,87492.0,0.1079091]
[1766536864262,0.06857118,87501.0,87492.0,0.1079091]
[1766536864606,0.01142857,87500.0,87492.0,0.1079091]
[1766536865808,0.0114287,87499.0,87492.0,0.1079091]
[1766536867433,0.01142857,87500.0,87492.0,0.1079091]
[1766536868629,0.01142831,87502.0,87492.0,0.1079091]
[1766536868884,0.01142831,87502.0,87492.0,0.11933871]
[1766536868885,0.01142844,87501.0,87492.0,0.11933871]
[1766536869058,0.01142831,87502.0,87493.0,0.01142948]
[1766536869218,0.01142844,87501.0,87492.0,0.11933871]
[1766536869628,0.01142831,87502.0,87493.0,0.01142948]
[1766536870169,0.01142817,87503.0,87493.0,0.01142948]
[1766536871890,0.01142844,87501.0,87492.0,0.11933871]
[1766536872096,0.01142831,87502.0,87493.0,0.01142948]
[1766536873581,0.01142831,87502.0,87492.0,0.11933871]
[1766536873763,0.01142831,87502.0,87492.0,0.1079091]
[1766536874706,0.01142844,87501.0,87492.0,0.11933871]
[1766536874931,0.11729844,87501.0,87492.0,0.01144]
[1766536875230,0.01142883,87498.0,87492.0,0.01144]
[1766536875608,0.01142896,87497.0,87492.0,0.01144]
[1766536875784,0.01142883,87498.0,87492.0,0.01144]
[1766536875968,0.0114287,87499.0,87492.0,0.01144]
[1766536876353,0.01142896,87497.0,87492.0,0.01144]
[1766536876560,0.06857263,87499.0,87492.0,0.01144]
[1766536876762,0.01142896,87497.0,87492.0,0.01144]
[1766536877007,0.0114287,87499.0,87492.0,0.01144]
[1766536877209,0.01142883,87498.0,87492.0,0.01144]
[1766536877959,0.01142896,87497.0,87492.0,0.01144]
[1766536878617,0.01142883,87498.0,87492.0,0.01144]
[1766536879432,0.11729844,87501.0,87492.0,0.06858756]
[1766536879433,0.10587,87501.0,87492.0,0.06858756]
[1766536879589,0.01144,87505.0,87497.0,0.13473896]
[1766536879794,0.01144,87505.0,87498.0,0.01142883]
[1766536879993,0.02286791,87505.0,87497.0,0.12331]
[1766536880228,0.04757379,87507.0,87497.0,0.12331]
[1766536880437,0.03614614,87507.0,87500.0,0.01142857]
[1766536880799,0.01144,87507.0,87499.0,0.0114287]
[1766536881003,0.01144,87507.0,87495.0,0.01142922]
[1766536881004,0.01142831,87502.0,87492.0,0.02286961]
[1766536881209,0.06142831,87502.0,87493.0,0.01142948]
[1766536881430,0.05,87502.0,87493.0,0.01142948]
[1766536881835,0.06142831,87502.0,87492.0,0.02286961]
[1766536882079,0.05,87502.0,87493.0,0.01142948]
[1766536882296,0.06857382,87497.0,87492.0,0.01144]
[1766536882462,0.06857382,87497.0,87490.0,0.01144]
[1766536882670,0.06857382,87497.0,87485.0,0.01143053]
[1766536882671,0.01142935,87494.0,87488.0,0.01144]
[1766536882844,0.00035764,87494.0,87488.0,0.01144]
[1766536883053,0.01178699,87494.0,87488.0,0.01144]
[1766536884184,0.00035764,87494.0,87488.0,0.01144]
[1766536884606,0.00035764,87494.0,87487.0,0.01143026]
[1766536884807,0.00035764,87494.0,87487.0,0.01144]
[1766536884985,0.01178699,87494.0,87487.0,0.01144]
[1766536886374,0.00035764,87494.0,87487.0,0.01144]
[1766536887052,0.01142948,87493.0,87487.0,0.01144]
[1766536889691,0.01178699,87494.0,87487.0,0.01144]
[1766536890249,0.01142948,87493.0,87487.0,0.01144]
[1766536890587,0.01178699,87494.0,87487.0,0.01144]
[1766536890782,0.01142948,87493.0,87487.0,0.01144]
[1766536893676,0.01142961,87492.0,87487.0,0.01144]
[1766536893875,0.01142948,87493.0,87487.0,0.01144]
[1766536894307,0.01178699,87494.0,87487.0,0.01144]
[1766536894840,0.01142948,87493.0,87487.0,0.01144]
[1766536895710,0.01143,87489.0,87478.0,0.14371144]
[1766536895843,0.01142974,87491.0,87481.0,0.18942577]
[1766536896050,0.01142974,87491.0,87481.0,0.13227105]
[1766536896278,0.01142987,87490.0,87481.0,0.12084]
[1766536896451,0.01142987,87490.0,87481.0,0.13227105]
[1766536897381,0.01142961,87492.0,87482.0,0.01143092]
[1766536897584,0.06857753,87493.0,87483.0,0.01143079]
[1766536897787,0.01142974,87491.0,87482.0,0.01143092]
[1766536897987,0.01142961,87492.0,87482.0,0.01143092]
[1766536898382,0.01142987,87490.0,87481.0,0.13227105]
[1766536899168,0.05714938,87490.0,87481.0,0.12084]
[1766536899389,0.01142987,87490.0,87481.0,0.12084]
[1766536899810,0.01143,87489.0,87480.0,0.01143118]
[1766536901087,0.01142987,87490.0,87480.0,0.01143118]
[1766536901489,0.01143,87489.0,87479.0,0.01143131]
[1766536902036,0.01143026,87487.0,87478.0,0.01144]
[1766536902265,0.01143013,87488.0,87478.0,0.01144]
[1766536902587,0.0114304,87486.0,87478.0,0.01144]
[1766536902833,0.01143013,87488.0,87478.0,0.01144]
[1766536902834,0.01143026,87487.0,87478.0,0.02287144]
[1766536904043,0.01143013,87488.0,87479.0,0.01143131]
[1766536904462,0.01143013,87488.0,87478.0,0.02287144]
[1766536904650,0.06857881,87491.0,87480.0,0.01143118]
[1766536904978,0.01142987,87490.0,87481.0,0.01143105]
[1766536905511,0.01143,87489.0,87480.0,0.13519118]
[1766536905706,0.01142974,87491.0,87482.0,0.13519092]
[1766536906041,0.02286961,87492.0,87483.0,0.12376]
[1766536906548,0.02286961,87492.0,87483.0,0.13519079]